bitfinex-derivatives/quotes_BTCF0:USTF0_20241210
["timestamp","ask_amount","ask_price","bid_price","bid_amount"]
[1733849875305,0.3608,96276.0,96261.0,6e-05]
[1733849875991,0.00812,96262.0,96261.0,6e-05]
[1733849876502,0.3608,96276.0,96261.0,0.30006]
[1733849876698,7.51e-05,96280.0,96279.0,0.051909]
[1733849877004,7.51e-05,96280.0,96279.0,0.051969]
[1733849877596,7.51e-05,96280.0,96271.0,0.36065581]
[1733849878008,0.00012,96272.0,96271.0,0.41256881]
[1733849878997,0.00012,96272.0,96271.0,0.36065581]
[1733849879705,0.34122839,96310.0,96271.0,0.36065581]
[1733849879706,0.18528995,96373.0,96369.0,0.05186]
[1733849879906,0.27624064,96383.0,96382.0,0.051853]
[1733849880203,2e-07,96383.0,96382.0,0.75856025]
[1733849880396,2e-07,96383.0,96382.0,1.09579896]
[1733849880602,0.3608,96427.0,96382.0,0.99192157]
[1733849880908,0.36556,96419.0,96400.0,0.28933639]
[1733849881110,0.36556,96419.0,96391.0,0.3608]
[1733849881111,0.00173441,96410.0,96391.0,0.3608]
[1733849881402,0.00012,96392.0,96391.0,0.3608]
[1733849881609,0.00012,96392.0,96382.0,0.02057424]
[1733849881999,0.00012,96383.0,96382.0,0.02057424]
[1733849882201,0.00185441,96383.0,96382.0,0.38137424]
[1733849882403,0.00358712,96383.0,96382.0,0.02057424]
[1733849882598,0.00358712,96383.0,96382.0,8.88e-05]
[1733849883206,0.41624012,96383.0,96382.0,8.88e-05]
[1733849883408,0.66438712,96383.0,96372.0,6e-05]
[1733849883598,0.051862,96365.0,96352.0,0.3103036]
[1733849883798,0.3608,96365.0,96352.0,0.3103036]
[1733849884100,0.3608,96365.0,96344.0,0.3608]
[1733849884101,0.00012,96353.0,96349.0,0.05187]
[1733849884302,0.00346712,96351.0,96350.0,0.00012138]
[1733849884510,1.5,96373.0,96364.0,0.051863]
[1733849884710,0.3608,96376.0,96366.0,0.051861]
[1733849884902,0.3608,96376.0,96372.0,6e-05]
[1733849885613,0.00012132,96378.0,96376.0,0.051856]
[1733849886007,0.00012132,96378.0,96377.0,0.00015576]
[1733849886205,0.3608,96410.0,96377.0,0.30015576]
[1733849886409,0.00155689,96422.0,96406.0,0.05184]
[1733849886705,0.00155689,96422.0,96418.0,6e-05]
[1733849887119,0.00155689,96422.0,96418.0,0.00017035]
[1733849887616,0.051833,96420.0,96418.0,0.05099243]
[1733849888312,0.00776,96419.0,96418.0,0.05099243]
[1733849889413,0.00776,96419.0,96418.0,0.07203091]
[1733849889615,0.00776,96419.0,96418.0,0.05099243]
[1733849889818,0.00776,96419.0,96405.0,0.41056357]
[1733849890014,0.00776,96419.0,96400.0,0.28933639]
[1733849890015,0.051836,96415.0,96400.0,0.28933639]
[1733849890218,0.3608,96416.0,96400.0,0.28933639]
[1733849890519,0.412635,96416.0,96415.0,6e-05]
[1733849890714,0.00876,96419.0,96415.0,0.00017878]
[1733849890715,0.00476,96419.0,96415.0,0.00017878]
[1733849890913,0.00876,96419.0,96415.0,0.00017878]
[1733849891220,0.00876,96419.0,96418.0,6e-05]
[1733849891610,0.00476,96419.0,96418.0,6e-05]
[1733849891814,0.3608,96446.0,96427.0,0.051829]
[1733849892012,0.051815,96453.0,96432.0,0.3608]
[1733849892214,0.00010516,96447.0,96445.0,6e-05]
[1733849892515,0.00010516,96447.0,96446.0,6e-05]
[1733849892710,0.00010516,96447.0,96432.0,0.30874681]
[1733849893115,0.00012,96433.0,96432.0,0.30874681]
[1733849893416,0.00010516,96447.0,96432.0,0.30874681]
[1733849893618,0.3608,96446.0,96432.0,0.05312534]
[1733849893819,0.42204,96477.0,96446.0,6e-05]
[1733849894021,0.1,96500.0,96472.0,0.3608]
[1733849894222,0.1,96500.0,96490.0,0.28933639]
[1733849894409,0.1,96500.0,96499.0,6e-05]
[1733849894810,0.1,96500.0,96499.0,0.00016257]
[1733849895431,0.4,96500.0,96460.0,0.28933639]
[1733849895724,0.36092,96477.0,96450.0,0.2372232]
[1733849896021,0.051815,96452.0,96451.0,0.00518397]
[1733849896210,0.051817,96450.0,96433.0,0.05108212]
[1733849896416,0.051815,96452.0,96430.0,0.00155545]
[1733849896417,0.3608,96434.0,96430.0,0.00155545]
[1733849896618,0.051826,96433.0,96431.0,0.0001255]
[1733849897130,0.3608,96462.0,96432.0,0.3608]
[1733849897330,0.3608,96462.0,96452.0,0.051815]
[1733849897619,0.3608,96462.0,96452.0,6e-05]
[1733849898316,0.3608,96462.0,96452.0,0.0001583]
[1733849898519,0.3608,96477.0,96452.0,0.41367318]
[1733849898713,0.3608,96477.0,96452.0,0.3609583]
[1733849898915,0.3608,96477.0,96452.0,0.0516782]
[1733849899115,0.3608,96477.0,96452.0,0.412615]
[1733849899321,0.3608,96477.0,96452.0,0.417615]
[1733849899827,0.3608,96477.0,96452.0,0.41771735]
[1733849899828,0.14328451,96477.0,96452.0,0.41771735]
[1733849900020,0.051807,96469.0,96461.0,0.3608]
[1733849900328,0.3608,96467.0,96452.0,0.43890781]
[1733849900516,0.14328451,96477.0,96452.0,0.43890781]
[1733849900517,0.14328451,96477.0,96460.0,0.3608]
[1733849900824,0.00155553,96482.0,96452.0,0.43890781]
[1733849900825,0.00155553,96482.0,96480.0,0.0518]
[1733849901025,0.1,96500.0,96481.0,0.3608]
[1733849901318,0.1,96500.0,96499.0,6e-05]
[1733849901525,0.15179,96500.0,96499.0,6e-05]
[1733849901914,0.051792,96496.0,96469.0,0.30880681]
[1733849902118,0.3608,96486.0,96469.0,0.30880681]
[1733849902321,0.00012,96470.0,96469.0,0.66096837]
[1733849902521,0.1,96500.0,96477.0,0.051802]
[1733849902822,0.1,96500.0,96499.0,6e-05]
[1733849902823,0.105,96500.0,96499.0,6e-05]
[1733849903523,0.1067339,96500.0,96499.0,6e-05]
[1733849904222,0.1017339,96500.0,96499.0,0.05181219]
[1733849904523,1.9625339,96500.0,96499.0,0.05181219]
[1733849904926,2.2625339,96500.0,96469.0,0.38146356]
[1733849905125,0.412599,96482.0,96469.0,0.38146356]
[1733849905325,0.051921,96479.0,96478.0,0.05302574]
[1733849905527,0.0018539,96479.0,96460.0,0.0015549]
[1733849905821,0.00012,96461.0,96460.0,0.34346741]
[1733849906025,0.00012,96461.0,96460.0,0.0015549]
[1733849906525,0.0018539,96461.0,96460.0,0.00166973]
[1733849906725,0.3608,96464.0,96460.0,0.00166973]
[1733849907024,0.3608,96464.0,96463.0,6e-05]
[1733849907216,0.3608,96474.0,96463.0,6e-05]
[1733849907419,0.051809,96465.0,96463.0,6e-05]
[1733849907619,0.05181,96462.0,96460.0,0.00166973]
[1733849907933,0.3608,96488.0,96463.0,0.051809]
[1733849908224,0.1,96500.0,96487.0,0.3608]
[1733849908522,0.1,96500.0,96499.0,6e-05]
[1733849908927,0.1,96500.0,96499.0,0.00013971]
[1733849909524,0.1,96500.0,96460.0,0.05284732]
[1733849909525,0.05179,96499.0,96460.0,0.05284732]
[1733849909829,0.3608,96483.0,96472.0,0.3608]
[1733849910120,0.3608,96483.0,96471.0,0.3608]
[1733849910329,0.3608,96483.0,96472.0,0.051804]
[1733849910623,0.3608,96483.0,96473.0,0.00010017]
[1733849910833,0.3608,96491.0,96473.0,0.00010017]
[1733849911127,0.10652001,96500.0,96490.0,0.36086]
[1733849911322,0.1,96500.0,96490.0,0.36086]
[1733849911530,0.1,96500.0,96499.0,6e-05]
[1733849912027,0.1,96500.0,96499.0,0.00016071]
[1733849912418,0.051797,96486.0,96473.0,0.003]
[1733849912624,0.3608,96494.0,96478.0,0.3608]
[1733849913029,0.412593,96494.0,96493.0,6e-05]
[1733849913421,0.412593,96494.0,96493.0,0.00016104]
[1733849913927,0.412593,96494.0,96473.0,0.05602896]
[1733849913928,0.051803,96475.0,96473.0,0.05602896]
[1733849914125,0.051803,96475.0,96473.0,0.00391577]
[1733849914325,0.3608,96480.0,96458.0,0.3608]
[1733849914326,0.051924,96474.0,96458.0,0.3608]
[1733849914527,0.051924,96474.0,96461.0,0.05181]
[1733849914528,0.051804,96473.0,96461.0,0.05181]
[1733849914829,0.051805,96471.0,96461.0,0.05181]
[1733849915022,0.051805,96471.0,96458.0,0.3608]
[1733849915023,0.3608,96462.0,96458.0,0.05066118]
[1733849915223,0.051813,96457.0,96443.0,0.05166632]
[1733849915423,0.3608,96459.0,96438.0,0.00155575]
[1733849915626,0.3608,96459.0,96447.0,0.3608]
[1733849915827,0.051811,96460.0,96458.0,6e-05]
[1733849916030,0.00155554,96479.0,96459.0,9.85e-05]
[1733849916231,0.00155554,96479.0,96472.0,0.3608]
[1733849916418,0.00155554,96479.0,96478.0,6e-05]
[1733849916927,0.051801,96480.0,96478.0,6e-05]
[1733849917125,0.051801,96480.0,96459.0,0.05286322]
[1733849917126,0.051809,96464.0,96461.0,0.3608]
[1733849917332,0.051809,96464.0,96459.0,9.85e-05]
[1733849917333,0.051811,96461.0,96459.0,9.85e-05]
[1733849917927,0.051811,96461.0,96459.0,0.05114827]
[1733849918124,0.051822,96439.0,96432.0,0.3608]
[1733849918428,0.051822,96439.0,96438.0,0.05221693]
[1733849918429,0.051942,96439.0,96438.0,0.05221693]
[1733849918637,0.051942,96439.0,96432.0,0.3608]
[1733849918931,0.00012,96433.0,96432.0,0.41224353]
[1733849919237,0.00012,96433.0,96432.0,0.76415501]
[1733849919429,0.00155564,96459.0,96432.0,0.71232901]
[1733849919636,0.00155564,96459.0,96451.0,0.3608]
[1733849919926,0.00012,96462.0,96461.0,0.051811]
[1733849920231,0.00012,96462.0,96461.0,0.36055781]
[1733849920430,0.00012,96462.0,96461.0,0.41236881]
[1733849920822,8.359e-05,96482.0,96461.0,0.41236881]
[1733849920823,8.359e-05,96482.0,96463.0,0.051809]
[1733849921023,0.051801,96479.0,96474.0,0.3608]
[1733849921225,0.051801,96479.0,96461.0,0.41156927]
[1733849921226,0.051804,96474.0,96461.0,0.05101146]
[1733849921430,0.051808,96466.0,96461.0,0.3608]
[1733849921732,0.051812,96459.0,96453.0,0.3608]
[1733849922325,0.051812,96460.0,96453.0,0.3608]
[1733849922531,8.359e-05,96482.0,96453.0,0.3608]
[1733849922532,0.051814,96455.0,96453.0,0.41163529]
[1733849922737,0.007,96466.0,96453.0,0.41163529]
[1733849922738,0.051812,96459.0,96453.0,0.41163529]
[1733849922926,0.051813,96457.0,96454.0,0.02093308]
[1733849923128,0.007,96466.0,96453.0,0.38045518]
[1733849923329,0.007,96466.0,96461.0,0.3608]
[1733849923531,0.051812,96458.0,96454.0,0.02051028]
[1733849923831,0.007,96466.0,96454.0,0.02051028]
[1733849923832,0.051814,96455.0,96454.0,0.02051028]
[1733849924135,0.051814,96455.0,96453.0,0.05083529]
[1733849924431,0.051815,96453.0,96441.0,0.36311532]
[1733849924646,0.051815,96453.0,96441.0,0.36235532]
[1733849924827,0.051935,96453.0,96441.0,0.36235532]
[1733849925028,0.051935,96453.0,96452.0,0.05264368]
[1733849925223,0.051935,96453.0,96452.0,0.00013478]
[1733849925832,0.412735,96453.0,96452.0,0.00013478]
[1733849926133,0.051816,96451.0,96436.0,0.04535141]
[1733849926326,0.051935,96453.0,96436.0,0.04535141]
[1733849926327,0.051821,96443.0,96436.0,0.04535141]
[1733849926529,0.00012,96437.0,96431.0,0.33058989]
[1733849926925,0.00012,96432.0,96431.0,0.43368533]
[1733849927138,0.00012,96432.0,96431.0,0.43381334]
[1733849927325,0.00012,96432.0,96431.0,0.38198634]
[1733849927524,0.00012,96432.0,96431.0,0.40242529]
[1733849928726,0.051946,96432.0,96431.0,0.40242529]
[1733849929134,0.051946,96432.0,96431.0,0.32987315]
[1733849929331,0.051946,96432.0,96431.0,0.05139645]
[1733849929739,0.3608,96444.0,96431.0,0.05139645]
[1733849930038,0.051815,96454.0,96443.0,0.36086]
[1733849930536,0.3608,96466.0,96453.0,6e-05]
[1733849930745,0.051809,96465.0,96453.0,6e-05]
[1733849930928,0.3608,96466.0,96456.0,0.3608]
[1733849931336,0.051812,96459.0,96440.0,0.30350039]
[1733849931637,0.051812,96459.0,96434.0,0.36420047]
[1733849931638,0.051826,96432.0,96431.0,0.00012801]
[1733849931831,0.412626,96432.0,96431.0,0.00012801]
[1733849932028,0.412626,96432.0,96431.0,0.05294725]
[1733849932240,0.051831,96424.0,96405.0,0.31440292]
[1733849932540,0.00012,96406.0,96405.0,0.31440292]
[1733849933234,0.00012,96406.0,96405.0,0.00011795]
[1733849933733,0.00012,96406.0,96405.0,0.00211795]
[1733849933945,0.00019569,96406.0,96405.0,0.00211795]
[1733849934131,0.051844,96399.0,96398.0,0.05257401]
[1733849934332,0.36099569,96406.0,96377.0,0.0204656]
[1733849934532,0.051851,96387.0,96377.0,0.0723206]
[1733849934731,0.00012,96378.0,96377.0,0.0204656]
[1733849934943,0.00012,96378.0,96372.0,0.051918]
[1733849935239,0.051854,96380.0,96370.0,0.30887196]
[1733849935638,0.051854,96380.0,96379.0,6e-05]
[1733849936241,0.051854,96380.0,96379.0,0.00013991]
[1733849937251,0.351854,96380.0,96379.0,9.1e-07]
[1733849937432,0.05187,96351.0,96350.0,0.00155703]
[1733849938135,0.05199,96351.0,96350.0,0.00155703]
[1733849938342,0.05199,96351.0,96345.0,0.00012104]
[1733849938645,0.3608,96369.0,96346.0,0.02106269]
[1733849938837,0.051864,96361.0,96351.0,0.3608]
[1733849939147,0.3608,96369.0,96346.0,0.02106269]
[1733849939339,0.051869,96352.0,96350.0,0.002]
[1733849939933,0.051869,96352.0,96350.0,0.001]
[1733849940133,0.051869,96352.0,96345.0,0.00312104]
[1733849940134,0.3608,96360.0,96351.0,0.003]
[1733849940334,0.051869,96352.0,96351.0,0.003]
[1733849940541,0.412669,96352.0,96351.0,0.003]
[1733849941337,0.3608,96352.0,96344.0,0.00662828]
[1733849941539,0.05187,96351.0,96340.0,0.30967299]
[1733849941738,0.00012,96345.0,96340.0,0.30967299]
[1733849941941,0.00155716,96371.0,96351.0,0.005]
[1733849942242,0.3608,96373.0,96361.0,0.28933639]
[1733849942432,0.051861,96368.0,96362.0,0.00010285]
[1733849942634,0.051858,96373.0,96372.0,6e-05]
[1733849942836,0.051858,96373.0,96362.0,0.00010285]
[1733849942837,0.051863,96363.0,96362.0,8.5e-07]
[1733849943048,0.051863,96363.0,96340.0,0.005]
[1733849943049,0.051869,96352.0,96340.0,0.005]
[1733849943253,0.3608,96341.0,96340.0,0.05628754]
[1733849943540,0.3608,96341.0,96340.0,0.014]
[1733849943743,0.001,96345.0,96340.0,0.014]
[1733849944050,0.001,96345.0,96344.0,6e-05]
[1733849944344,0.00155729,96361.0,96344.0,0.24794681]
[1733849944547,0.00012,96363.0,96355.0,0.7216]
[1733849944751,0.051846,96397.0,96373.0,0.051858]
[1733849944938,0.05360989,96400.0,96390.0,0.28933639]
[1733849945244,0.051845,96397.0,96396.0,6e-05]
[1733849945438,0.0015567,96400.0,96370.0,0.29089279]
[1733849945639,0.051849,96389.0,96370.0,0.29089279]
[1733849945842,0.00012,96371.0,96370.0,0.29089279]
[1733849946042,0.00012,96371.0,96370.0,0.0015564]
[1733849946344,0.007,96397.0,96396.0,0.001]
[1733849946646,0.007,96397.0,96370.0,0.0015564]
[1733849946647,0.051858,96373.0,96370.0,0.0015564]
[1733849946945,0.00012,96371.0,96370.0,0.0015564]
[1733849947539,0.00012,96371.0,96360.0,0.3106023]
[1733849947932,0.00012,96361.0,96360.0,0.02126591]
[1733849948941,0.00012,96361.0,96360.0,0.02226591]
[1733849949243,0.05211319,96361.0,96360.0,0.001]
[1733849949743,0.00012,96361.0,96360.0,0.002]
[1733849950141,0.00012,96361.0,96360.0,0.053865]
[1733849950338,0.00012,96361.0,96360.0,0.002]
[1733849950542,0.3608,96420.0,96360.0,0.61068681]
[1733849950745,0.3608,96428.0,96360.0,0.61068681]
[1733849950746,0.3608,96428.0,96404.0,0.3608]
[1733849950940,0.3608,96428.0,96405.0,6e-05]
[1733849951140,0.10218207,96406.0,96405.0,0.00013736]
[1733849951537,7.569e-05,96406.0,96405.0,0.00013736]
[1733849952549,0.10218207,96406.0,96405.0,0.00013736]
[1733849953049,0.10518207,96406.0,96405.0,0.00013736]
[1733849953646,0.11318207,96406.0,96405.0,0.001]
[1733849954639,0.11318207,96406.0,96405.0,0.00108286]
[1733849954939,0.11318207,96406.0,96366.0,0.02086866]
[1733849954940,0.31107569,96406.0,96366.0,0.02086866]
[1733849955149,0.412658,96373.0,96366.0,0.02086866]
[1733849955354,0.00012,96367.0,96366.0,0.02086866]
[1733849955853,0.00012,96367.0,96366.0,0.0210007]
[1733849956353,0.00012,96367.0,96366.0,0.0728627]
[1733849956551,0.28933639,96420.0,96366.0,0.0728627]
[1733849956552,0.00807569,96406.0,96367.0,0.051861]
[1733849956756,0.00807569,96406.0,96403.0,0.3608]
[1733849956940,0.00807569,96406.0,96405.0,6e-05]
[1733849957252,0.00107569,96406.0,96405.0,6e-05]
[1733849958245,0.41175333,96406.0,96405.0,6e-05]
[1733849958849,0.41575333,96406.0,96405.0,6e-05]
[1733849959251,0.41575333,96406.0,96405.0,0.05072785]
[1733849959545,0.41475333,96406.0,96387.0,0.30874681]
[1733849959745,0.051842,96404.0,96387.0,0.30874681]
[1733849959946,0.00012,96388.0,96387.0,0.30874681]
[1733849960452,0.00012,96388.0,96387.0,0.05139382]
[1733849960654,0.00012,96388.0,96385.0,0.00155611]
[1733849961045,0.00012,96386.0,96385.0,0.00155611]
[1733849961245,0.36092,96386.0,96385.0,0.00155611]
[1733849961444,0.36092,96386.0,96385.0,0.05461967]
[1733849961445,0.00012,96386.0,96385.0,0.05461967]
[1733849961760,0.00012,96386.0,96385.0,0.00155611]
[1733849962348,0.04999764,96386.0,96385.0,0.00155611]
[1733849962650,0.04999764,96386.0,96376.0,0.23877931]
[1733849962845,0.04999764,96386.0,96385.0,0.001]
[1733849963758,0.3608,96397.0,96385.0,0.001]
[1733849964056,7.569e-05,96406.0,96396.0,6e-05]
[1733849964263,0.04995333,96406.0,96396.0,0.28939639]
[1733849964460,0.04995333,96406.0,96405.0,6e-05]
[1733849964961,7.569e-05,96406.0,96405.0,6e-05]
[1733849965155,7.569e-05,96406.0,96385.0,0.001]
[1733849965351,7.569e-05,96406.0,96372.0,0.051858]
[1733849965352,0.051848,96392.0,96372.0,0.051858]
[1733849965556,0.051849,96389.0,96372.0,0.051858]
[1733849965855,0.051849,96389.0,96380.0,0.30868681]
[1733849966054,0.10166664,96389.0,96380.0,0.30868681]
[1733849966351,0.00207569,96406.0,96405.0,0.051841]
[1733849966764,0.00207569,96406.0,96405.0,0.051901]
[1733849966765,0.01007569,96406.0,96405.0,0.051901]
[1733849967362,0.00807569,96406.0,96405.0,0.05198712]
[1733849967754,7.569e-05,96406.0,96405.0,0.05198712]
[1733849968155,0.00407569,96406.0,96405.0,0.05198712]
[1733849968865,0.05389333,96406.0,96404.0,0.18337461]
[1733849969065,0.412641,96405.0,96403.0,0.05105292]
[1733849969257,0.412641,96405.0,96380.0,0.28933639]
[1733849969258,0.051845,96397.0,96385.0,0.13411697]
[1733849969453,0.3608,96390.0,96385.0,0.13411697]
[1733849969669,0.00012,96386.0,96385.0,0.13411697]
[1733849969864,0.00012,96386.0,96385.0,0.02098574]
[1733849970069,0.00012,96386.0,96385.0,0.06414143]
[1733849970279,0.01207569,96406.0,96385.0,0.32098574]
[1733849970470,0.27788495,96441.0,96425.0,0.05183]
[1733849970471,0.15438053,96441.0,96425.0,0.05183]
[1733849970778,0.15438053,96444.0,96426.0,0.051829]
[1733849970967,0.15438053,96444.0,96443.0,0.3608]
[1733849971163,0.15438053,96444.0,96443.0,0.36086]
[1733849971369,0.18525942,96453.0,96443.0,0.36095012]
[1733849971572,0.18525942,96453.0,96452.0,0.412615]
[1733849971773,0.21613274,96460.0,96452.0,0.66056181]
[1733849971970,0.21613274,96460.0,96459.0,0.412612]
[1733849972172,0.21613274,96460.0,96459.0,0.412672]
[1733849972379,0.24700885,96478.0,96459.0,0.66094015]
[1733849972677,0.24700885,96478.0,96477.0,0.051862]
[1733849973073,0.24700885,96478.0,96477.0,0.05197773]
[1733849973782,0.25600885,96478.0,96477.0,0.05197773]
[1733849974580,0.25600885,96478.0,96477.0,0.07235587]
[1733849974771,0.25600885,96478.0,96477.0,0.02024268]
[1733849974976,0.25600885,96478.0,96477.0,0.07204468]
[1733849975171,0.24700885,96478.0,96477.0,0.07204468]
[1733849975380,0.25000885,96478.0,96477.0,0.07204468]
[1733849975879,0.00011935,96490.0,96489.0,0.051796]
[1733849976081,0.00011935,96490.0,96489.0,0.412596]
[1733849976376,0.00011935,96490.0,96489.0,0.412656]
[1733849976775,0.00011935,96490.0,96489.0,0.36086]
[1733849977169,0.00311935,96490.0,96489.0,0.36086]
[1733849977780,0.00568919,96490.0,96489.0,0.36086]
[1733849977979,0.00568919,96490.0,96489.0,0.30874681]
[1733849978481,0.01368919,96490.0,96489.0,0.30874681]
[1733849979681,0.01368919,96490.0,96489.0,6e-05]
[1733849980268,0.37448919,96490.0,96489.0,0.0434174]
[1733849980782,1.87448919,96490.0,96489.0,0.0434174]
[1733849980980,1.87448919,96490.0,96470.0,0.28933639]
[1733849980981,0.051798,96486.0,96470.0,0.28074304]
[1733849981176,0.3608,96482.0,96470.0,0.28074304]
[1733849981371,0.00012,96471.0,96470.0,0.04307888]
[1733849981570,0.00012,96471.0,96438.0,0.2425056]
[1733849981571,0.051812,96458.0,96438.0,0.2425056]
[1733849981772,0.412612,96458.0,96457.0,0.04456424]
[1733849982076,0.412732,96458.0,96457.0,0.00012368]
[1733849982774,0.41530184,96458.0,96457.0,0.00012368]
[1733849983183,0.41530184,96458.0,96423.0,0.38189576]
[1733849983184,0.67048984,96458.0,96423.0,0.38189576]
[1733849983384,0.67048984,96458.0,96440.0,0.051822]
[1733849983385,0.3608,96449.0,96440.0,0.051822]
[1733849983680,0.00256984,96445.0,96440.0,0.051822]
[1733849983879,0.00256984,96445.0,96441.0,0.051821]
[1733849984177,0.051811,96460.0,96448.0,0.051817]
[1733849984484,0.051808,96467.0,96459.0,6e-05]
[1733849984669,0.3608,96468.0,96459.0,6e-05]
[1733849984875,0.25940425,96468.0,96466.0,6e-05]
[1733849985076,0.051796,96488.0,96474.0,0.051803]
[1733849985284,0.3608,96499.0,96470.0,0.28933639]
[1733849985477,0.3608,96499.0,96487.0,6e-05]
[1733849985673,0.1,96500.0,96485.0,0.3608]
[1733849985674,0.051796,96489.0,96485.0,0.3608]
[1733849985878,0.1,96500.0,96485.0,0.3608]
[1733849986072,0.1,96500.0,96493.0,0.3608]
[1733849986279,0.05189,96500.0,96497.0,0.051791]
[1733849986780,0.05189,96500.0,96499.0,0.3608]
[1733849986971,0.05189,96500.0,96499.0,0.30880237]
[1733849987179,0.10368,96500.0,96499.0,0.30880237]
[1733849987484,0.10368,96500.0,96499.0,0.00011556]
[1733849987980,0.10868,96500.0,96499.0,0.00011556]
[1733849988669,0.10868,96500.0,96499.0,0.00111556]
[1733849988873,0.11768,96500.0,96499.0,0.00111556]
[1733849989484,0.00628829,96500.0,96499.0,0.00111556]
[1733849989682,0.051784,96511.0,96503.0,0.051788]
[1733849989874,0.051784,96511.0,96507.0,0.3608]
[1733849990075,0.051784,96511.0,96507.0,0.30874681]
[1733849990275,0.4207,96519.0,96499.0,0.05290556]
[1733849990472,0.051786,96508.0,96499.0,0.05290556]
[1733849990676,0.00012,96500.0,96499.0,0.05190556]
[1733849991479,0.00012,96500.0,96499.0,0.05290556]
[1733849991875,0.00012,96500.0,96499.0,0.00111556]
[1733849992479,0.051789,96501.0,96499.0,0.00211556]
[1733849992982,0.051789,96501.0,96499.0,0.00111556]
[1733849993179,0.06079,96500.0,96499.0,0.001]
[1733849993381,0.06479,96500.0,96499.0,0.001]
[1733849993978,0.06079,96500.0,96499.0,0.001]
[1733849994278,0.06079,96500.0,96499.0,0.00111474]
[1733849994674,0.06079,96500.0,96488.0,0.04415051]
[1733849994675,0.051796,96489.0,96488.0,0.04415051]
[1733849994977,0.051796,96489.0,96462.0,0.05181]
[1733849994978,0.00012,96489.0,96462.0,0.05181]
[1733849995176,0.004,96500.0,96488.0,0.7216]
[1733849995375,0.00064,96500.0,96499.0,0.3608]
[1733849995578,0.00956629,96500.0,96499.0,0.41365]
[1733849995975,0.02924114,96500.0,96499.0,0.00106]
[1733849996179,0.051792,96495.0,96494.0,4.1e-07]
[1733849996479,0.051792,96495.0,96452.0,0.3608]
[1733849996480,0.051816,96451.0,96450.0,0.42439027]
[1733849996676,0.051816,96451.0,96420.0,1.20232937]
[1733849996677,0.051832,96422.0,96420.0,0.71942298]
[1733849996871,2.27201806,96421.0,96379.0,0.34944719]
[1733849997076,0.05186,96370.0,96348.0,0.051871]
[1733849997281,0.412654,96380.0,96311.0,0.57066685]
[1733849997282,0.3608,96341.0,96312.0,0.7231]
[1733849997480,0.3608,96349.0,96312.0,0.7231]
[1733849997481,0.3608,96313.0,96312.0,0.7231]
[1733849997677,0.36092,96313.0,96312.0,0.37204915]
[1733849997879,0.00012,96313.0,96312.0,0.06459322]
[1733849998079,0.28933639,96322.0,96312.0,0.06459322]
[1733849998281,0.33275,96345.0,96320.0,0.28933639]
[1733849998476,0.051884,96325.0,96321.0,6e-05]
[1733849998777,0.051885,96323.0,96322.0,0.00519092]
[1733849999280,0.051897,96301.0,96300.0,0.02373095]
[1733849999482,0.773497,96301.0,96300.0,0.02373095]
[1733849999679,0.3608,96318.0,96312.0,0.004]
[1733849999887,0.3608,96344.0,96313.0,0.3608]
[1733850000091,0.051875,96341.0,96330.0,0.28933639]
[1733850000275,0.3608,96342.0,96331.0,0.28933639]
[1733850000585,0.3608,96342.0,96294.0,0.0519]
[1733850000586,0.051888,96318.0,96294.0,0.0519]
[1733850000787,0.051866,96358.0,96312.0,0.3608]
[1733850000990,0.051869,96352.0,96348.0,0.28933639]
[1733850001177,0.02070473,96361.0,96348.0,0.28933639]
[1733850001387,0.3608,96384.0,96353.0,0.3608]
[1733850001586,0.3608,96398.0,96375.0,0.28933639]
[1733850001787,0.051864,96361.0,96360.0,0.28933639]
[1733850002083,0.3608,96379.0,96353.0,0.40355529]
[1733850002388,0.3608,96390.0,96378.0,6e-05]
[1733850002689,0.27467282,96407.0,96389.0,0.3608]
[1733850002884,0.051848,96392.0,96390.0,0.28933639]
[1733850003085,0.051854,96381.0,96380.0,0.28933639]
[1733850003388,0.051859,96371.0,96360.0,0.28933639]
[1733850003585,0.051861,96368.0,96361.0,9.274e-05]
[1733850003899,0.051864,96363.0,96361.0,9.274e-05]
[1733850004083,0.3608,96365.0,96340.0,0.28933639]
[1733850004084,0.008,96361.0,96360.0,0.001]
[1733850004279,0.008,96361.0,96340.0,0.28933639]
[1733850004280,0.3688,96361.0,96340.0,0.04252415]
[1733850004492,0.051875,96341.0,96340.0,0.04252415]
[1733850004685,0.051883,96327.0,96321.0,0.3608]
[1733850004888,0.051885,96324.0,96313.0,0.04273784]
[1733850005089,0.00012,96322.0,96314.0,0.0001334]
[1733850005286,0.00012,96322.0,96321.0,0.30868681]
[1733850005488,0.3658,96361.0,96321.0,0.30868681]
[1733850005693,0.005,96361.0,96360.0,0.3608]
[1733850005991,0.051859,96372.0,96360.0,0.00011207]
[1733850006194,0.36879911,96375.0,96360.0,0.00011207]
[1733850006493,0.051879,96335.0,96292.0,0.3608]
[1733850006698,0.051861,96368.0,96288.0,0.051903]
[1733850006699,0.05189,96314.0,96288.0,0.051903]
[1733850006884,0.05189,96314.0,96289.0,0.02060055]
[1733850007092,0.051897,96301.0,96300.0,9.5e-07]
[1733850007288,0.412697,96301.0,96300.0,9.724e-05]
[1733850007592,0.051902,96291.0,96276.0,0.02122148]
[1733850007898,8.669e-05,96305.0,96273.0,0.3608]
[1733850007899,0.00012,96277.0,96273.0,0.3608]
[1733850008194,0.004,96301.0,96273.0,0.40471939]
[1733850008392,0.3608,96298.0,96276.0,0.02063353]
[1733850008589,0.65013639,96290.0,96274.0,8.67e-05]
[1733850008789,0.65013639,96290.0,96276.0,0.006]
[1733850008790,0.051907,96283.0,96276.0,0.006]
[1733850008993,1.50084,96289.0,96276.0,0.006]
[1733850009189,1.5,96289.0,96276.0,0.006]
[1733850009389,0.05191,96278.0,96276.0,0.006]
[1733850009698,0.05191,96278.0,96276.0,0.009]
[1733850010195,0.3608,96277.0,96276.0,0.008]
[1733850010502,0.3608,96277.0,96252.0,0.04312537]
[1733850010503,0.051921,96257.0,96252.0,0.04312537]
[1733850010790,0.051923,96253.0,96252.0,0.04312537]
[1733850010990,0.051923,96253.0,96252.0,0.02066261]
[1733850011183,0.051923,96253.0,96236.0,0.04384522]